Cogmind - Beta 17.1 @@@ ROGUE MODE // 2026.08.27 @ 16:21:53 Player: pirluit Result: Destroyed by Y-45 Defender with Beam Rifle Performance ------------- Evolutions (1) 500 Regions Visited (3) 600 Robots Destroyed (34) 170 Value Destroyed (884) 884 Prototype IDs (1) 20 Alien Tech Used (0) 0 Bonus (11) 11 TOTAL SCORE: 2185 Bonus ------- High Alert Combat Kills 11 Cogmind --------- Core Integrity 0/400 Matter 155/300 Energy 93/265 System Corruption 18% Temperature Warm (125) Movement Walking (120) Location -9/Storage Parts ------- > --- POWER (1) -------- Improved Ion Engine > --- PROPULSION (3) --- Aluminum Leg Aluminum Leg > --- UTILITY (3) ------ Small Storage Unit Small Storage Unit > --- WEAPON (2) ------- Heavy Hammer > --- INVENTORY (8) ---- Flight Unit Visual Processing Unit Medium Laser Light Assault Rifle Peak State ------------ > --- POWER ------------ Light Ion Engine > --- PROPULSION ------- Flight Unit Flight Unit Improved Flight Unit > --- UTILITY ---------- Small Storage Unit Weight Redist. System Visual Processing Unit > --- WEAPON ----------- Light Assault Rifle Mini Grenade Launcher > --- INVENTORY -------- Ion Engine Aluminum Leg Aluminum Leg Aluminum Leg Aluminum Leg Medium Laser Heavy Assault Rifle Heavy Hammer [Rating: 15] Favorites ----------- Power Light Ion Engine Engine Light Ion Engine Propulsion Flight Unit Treads Light Treads Leg Aluminum Leg Flight Unit Flight Unit Utility Visual Processing Unit Device Weight Redist. System Storage Small Storage Unit Processor Visual Processing Unit Weapon Light Assault Rifle Energy Gun Small Laser Ballistic Gun Light Assault Rifle Launcher Mini Grenade Launcher Impact Weapon Heavy Hammer Slashing Weapon Mining Claw Build | -11 -10 -9 -9 ------- Run | Yrd Mat Mat Sto Slots Evolved 2 | . . 2 . Power . | . . . . Propulsion 1 | . . 1 . Utility 1 | . . 1 . Weapon . | . . . . Parts Attached 31 | 6 8 5 12 Power 4 | 1 . . 3 Engine 4 | 1 . . 3 Core . | . . . . Reactor . | . . . . Propulsion 12 | 2 2 2 6 Treads 3 | . . . 3 Leg 5 | 2 . . 3 Wheel . | . . . . Hover . | . . . . Flight 4 | . 2 2 . Utility 7 | 1 4 1 1 Device 3 | 1 2 . . Storage 3 | . 1 1 1 Processor 1 | . 1 . . Hackware . | . . . . Protection . | . . . . Artifact . | . . . . Weapon 8 | 2 2 2 2 Energy Gun 1 | . . 1 . Energy Cannon . | . . . . Ballistic Gun 3 | 2 . . 1 Ballistic Cannon . | . . . . Launcher 2 | . 1 1 . Special Weapon . | . . . . Impact Weapon 1 | . . . 1 Slashing Weapon 1 | . 1 . . Piercing Weapon . | . . . . Special Melee Weapon . | . . . . Unidentified Prototypes 1 | . . 1 . Corrupted Parts 2 | . . . 2 System Corruption 14 | . . . 14 Parts Lost 12 | . . 1 11 Power 1 | . . . 1 Propulsion 7 | . . 1 6 Utility 2 | . . . 2 Weapon 2 | . . . 2 Highest Loss Streak 6 | . . 1 6 To Critical Strikes . | . . . . Average Backups 5 | . 4 7 7 Power . | . . 1 1 Propulsion 2 | . 1 3 3 Utility . | . . . . Weapon 2 | . 1 2 2 Tool/Special . | . . . . Unused Backups 4 | . 1 1 2 Power 1 | . . 1 . Propulsion . | . . . . Utility 1 | . . . 1 Weapon 2 | . 1 . 1 Tool/Special . | . . . . Average Slot Usage (%) 85 | . 90 83 83 Engine 10 | . 14 11 7 Treads 1 | . . . 2 Leg 7 | . 7 . 11 Flight 14 | . 19 19 9 Device 8 | . 12 11 5 Storage 9 | . . 8 15 Processor 10 | . 10 11 10 Ballistic Gun 12 | . 16 11 10 Launcher 2 | . 1 4 2 Impact Weapon 4 | . . . 8 Slashing Weapon 2 | . 6 2 . Peak Build Rating 15 | 6 9 14 15 Average Rating 9 | 3 7 10 11 On Entrance 7 | . 6 9 14 Avg Prop Armor Cover (%) . | . . . . Naked Turns . | . . . . Heaviest Build 21 | 7 9 10 21 Greatest Support 60 | 20 20 19 60 Greatest Overweight (x) 4 | . 1 . 4 Average Overweight (x) . | . . . . Largest Inventory Capacity 8 | 5 5 8 8 Average Capacity 6 | 5 5 7 8 Most Carried 8 | 2 5 8 8 Average Carried 5 | . 4 7 7 Final Capacity 8 | 5 5 8 8 Final Carried 8 | 2 5 8 4 Class Distribution -------------------- 55% | Mutant 44% | Scavenger-Mutant Dominant Class ---------------- Mutant | -10/Materials Mutant | -9/Materials Scavenger-Mutant | -9/Storage Resources | -11 -10 -9 -9 ----------- Run | Yrd Mat Mat Sto Matter Collected 743 | 258 160 173 152 Remotely . | . . . . Salvage Created 1056 | 39 59 352 606 Parts 69 | 2 14 25 28 Haulers Intercepted . | . . . . Recyclers Shooed 1 | . . 1 . Parts Field Recycled . | . . . . Retrieved Matter . | . . . . Parts Self-Destructed . | . . . . Prevented . | . . . . Parts Restored . | . . . . Kills | -11 -10 -9 -9 ------- Run | Yrd Mat Mat Sto Combat Hostiles Destroyed 23 | 1 3 8 11 Melee 2 | . . . 2 Guns 6 | 1 2 2 1 AOE 12 | . 1 6 5 Classes Destroyed 7 | 1 3 1 2 Worker 1 | . . . 1 Builder 1 | . 1 . . Recycler 4 | . . 2 2 Watcher 5 | . 1 4 . Swarmer 6 | . 3 3 . Grunt 10 | 1 . 5 4 Sentry 7 | . . . 7 Best Kill Streak 11 | 1 4 11 6 Combat Bots Only 6 | 1 3 6 6 Max Kills in Single Turn 2 | 1 2 2 2 Gunslinging . | . . . . Exploded 2 | . 1 2 2 Melee 1 | . . . 1 Uniques/NPCs Destroyed . | . . . . Combat | -11 -10 -9 -9 -------- Run | Yrd Mat Mat Sto Hostile Shots Fired 167 | 2 15 21 129 Missed 57 | . 8 11 38 Hits 110 | 2 7 10 91 Projectile 110 | 2 7 10 91 Critical Strikes 7 | . . . 7 Damage Taken 1828 | 21 77 99 1631 Core 433 | . 24 . 409 Absorbed by Shields . | . . . . Regen/Repaired (Parts) 33 | . . . 33 Core Remaining (%) 95 | 100 90 . . Volleys Fired 62 | 2 22 22 16 Largest 2 | 2 2 2 2 Hottest 60 | 40 50 60 53 Shots Fired 93 | 4 26 39 24 Gun 66 | 4 23 28 11 Cannon . | . . . . Launcher 27 | . 3 11 13 Special . | . . . . Kinetic 60 | 4 23 22 11 Thermal 6 | . . 6 . Explosive 27 | . 3 11 13 Electromagnetic . | . . . . Robot Hit Streak 5 | 1 5 5 5 Robot Miss Streak 5 | 1 3 5 3 Penetration Max . | . . . . Secondary Targets . | . . . . Shots Hit Robots 59 | 2 13 16 28 Core Hits 54 | 2 6 21 25 Critical Kills 1 | . . . 1 Critical Parts Destroyed . | . . . . Critical Strikes 1 | . . . 1 Smash 1 | . . . 1 Melee Attacks 19 | . 2 . 17 Impact 17 | . . . 17 Slashing 2 | . 2 . . Piercing . | . . . . Sneak Attacks 3 | . . . 3 Combat Hostiles . | . . . . Follow-up Attacks . | . . . . Damage Inflicted 2305 | 23 241 863 1178 Guns 292 | 23 108 110 51 Cannons . | . . . . Explosions 1356 | . 108 753 495 Melee 657 | . 25 . 632 Ramming . | . . . . Kinetic 246 | 23 108 64 51 Thermal 46 | . . 46 . Explosive 1356 | . 108 753 495 Electromagnetic . | . . . . Impact 632 | . . . 632 Slashing 25 | . 25 . . Piercing . | . . . . Highest Corruption 18 | . . . 18 Average Corruption 15 | . . . 15 Corruption Purged . | . . . . Corruption Blocked . | . . . . Effects 3 | . . . 3 Heat Flow Errors 3 | . . . 3 Overload Shots . | . . . . Overflow Damage 235 | . 16 36 183 Projectiles . | . . . . Explosions 63 | . 16 36 11 Melee 172 | . . . 172 Knockbacks 2 | . . . 2 Impact 2 | . . . 2 Kinetic . | . . . . Secondary . | . . . . Self-Inflicted Damage 101 | . 9 9 83 Shots 5 | . 1 1 3 Rammed . | . . . . Targets Rammed . | . . . . Kicked . | . . . . Crushed . | . . . . Highest Temperature 164 | 12 13 45 164 Average Temperature 45 | 9 3 10 86 Received Heat Transfer 747 | 12 18 30 687 Siege Activations . | . . . . Martial Activations . | . . . . Shielding Activations . | . . . . Robots Disrupted . | . . . . Combat Hostiles . | . . . . Robots Corrupted 4 | . . . 4 Combat Hostiles 3 | . . . 3 Parts Fried 4 | . . . 4 Impact Corruptions 7 | . . . 7 Robots Melted . | . . . . Combat Hostiles . | . . . . Parts Melted . | . . . . Heat Transferred 100 | . . 100 . Parts Sabotaged . | . . . . Parts Stolen . | . . . . Parts Stripped . | . . . . Power Chain Reactions . | . . . . Alert | -11 -10 -9 -9 ------- Run | Yrd Mat Mat Sto Maximum Alert Level 2 | . . 1 2 Low Security (%) 74 | 100 100 85 49 Level 1 23 | . . 14 47 Level 2 1 | . . . 3 Level 3 . | . . . . Level 4 . | . . . . Level 5 . | . . . . High Security . | . . . . Max Security . | . . . . Peak Influence 420 | 20 96 242 420 Initial 102 | . 13 24 102 Average 135 | 2 60 84 231 Influence Increases 1061 | 20 156 298 587 Destroy 0b10 Robot/C 460 | 20 60 160 220 Destroy 0b10 Robot/NC 55 | . 10 30 15 Destroy Leader 140 | . 12 38 90 Successful Hack 34 | . 13 . 21 Disable Machine 30 | . . 15 15 Destroy Structure 117 | . 16 40 61 Partial Spotted 30 | . . 15 15 Lose Combat Pursuer 195 | . 45 . 150 Influence Decreases 672 | . 117 115 440 Entered New Map 182 | . 7 35 140 Time Decay 370 | . 110 70 190 Lost Part 120 | . . 10 110 Squads Dispatched 5 | . . 1 4 Investigation 1 | . . . 1 Extermination . | . . . . Reinforcement 4 | . . 1 3 Assault . | . . . . Garrison . | . . . . Intercept . | . . . . Searches Triggered . | . . . . Construction Impeded . | . . . . Haulers Reinforced . | . . . . Active Scanning Responses . | . . . . Cargo Convoy Interrupts . | . . . . Stealth | -11 -10 -9 -9 --------- Run | Yrd Mat Mat Sto Distress Signals 6 | . 3 1 2 Communications Jammed . | . . . . Distress Signals . | . . . . Times Spotted 55 | 1 12 15 27 Peak Tracking Total 11 | 1 5 4 11 Tactical Retreats 7 | . 2 . 5 Traps | -11 -10 -9 -9 ------- Run | Yrd Mat Mat Sto Traps Triggered 1 | . . . 1 Indirectly . | . . . . Trap Hack Attempts . | . . . . Triggered . | . . . . Disarmed . | . . . . Reprogrammed . | . . . . Reused . | . . . . Traps Extracted . | . . . . Installed . | . . . . Triggered . | . . . . Machines | -11 -10 -9 -9 ---------- Run | Yrd Mat Mat Sto Machines Disabled 2 | . . 1 1 Max in Single Turn 1 | . . 1 1 Machines Repaired . | . . . . Machines Dismantled . | . . . . Machines Sabotaged . | . . . . Overloaded Fab Kills . | . . . . Hacking | -11 -10 -9 -9 --------- Run | Yrd Mat Mat Sto Machines Accessed 8 | . 3 1 4 Terminals 6 | . 3 1 2 Fabricators . | . . . . Repair Stations 2 | . . . 2 Recycling Units . | . . . . Scanalyzers . | . . . . Garrison Access . | . . . . Total Hacks 25 | . 8 2 15 Successful 19 | . 8 2 9 Failed 6 | . . . 6 Catastrophic . | . . . . Database Lockouts . | . . . . Manual . | . . . . Terminals 13 | . 8 2 3 Fabricators . | . . . . Repair Stations 12 | . . . 12 Recycling Units . | . . . . Scanalyzers . | . . . . Garrison Access . | . . . . Terminal Hacks 12 | . 8 2 2 Record 7 | . 4 1 2 Robot Analysis 1 | . 1 . . Alert Level 1 | . . 1 . Locate Traps 1 | . 1 . . Dispatch Records 1 | . 1 . . Reinforcement Status 1 | . 1 . . Fabricator Hacks . | . . . . Repair Station Hacks 7 | . . . 7 Scan Component 4 | . . . 4 Repair 3 | . . . 3 Recycling Unit Hacks . | . . . . Scanalyzer . | . . . . Garrison Access Hacks . | . . . . Unauthorized Hacks . | . . . . Terminals . | . . . . Fabricators . | . . . . Repair Stations . | . . . . Recycling Units . | . . . . Scanalyzers . | . . . . Garrison Access . | . . . . Data Cores Recovered . | . . . . Used . | . . . . Hacking Detections 7 | . 3 1 3 Full Trace Events 2 | . . . 2 Feedback Events . | . . . . Feedback Blocked . | . . . . Robot Schematics Acquired . | . . . . Robots Built . | . . . . Authchips . | . . . . Time . | . . . . Total Robot Build Rating . | . . . . Part Schematics Acquired . | . . . . Parts Built . | . . . . Authchips . | . . . . Time . | . . . . Total Part Build Rating . | . . . . Part Studies Acquired . | . . . . Parts Repaired 3 | . . . 3 Time 128 | . . . 128 Parts Recycled . | . . . . Recycled Matter . | . . . . Retrieved Matter . | . . . . Retrieved Components . | . . . . Parts Scanalyzed . | . . . . Part Schematics Acquired . | . . . . Parts Damaged . | . . . . Bothacking | -11 -10 -9 -9 ------------ Run | Yrd Mat Mat Sto Used RIF Installer . | . . . . Robots Hacked . | . . . . Non-combat . | . . . . Combat . | . . . . Robot Hacks Applied . | . . . . Relay Couplers Released . | . . . . Fabnet Peak Effective % . | . . . . Robots Rewired . | . . . . Allies Hacked . | . . . . Hacks Repelled . | . . . . Allies | -11 -10 -9 -9 -------- Run | Yrd Mat Mat Sto Total Allies . | . . . . Largest Group . | . . . . Highest-Rated Group . | . . . . Highest-Rated Ally . | . . . . Total Orders . | . . . . Ally Attacks . | . . . . Total Damage . | . . . . Kills . | . . . . Allies Corrupted . | . . . . Allies Melted . | . . . . Intel | -11 -10 -9 -9 ------- Run | Yrd Mat Mat Sto Active Infowar (turns) 727 | . 194 154 379 Optics 727 | . 194 154 379 Structural 45 | . 45 . . Robot Analysis Total 1 | . 1 . . Derelict Logs Recovered . | . . . . Drone Launches . | . . . . Drone Recoveries . | . . . . Exploration | -11 -10 -9 -9 ------------- Run | Yrd Mat Mat Sto Turns Passed 884 | 95 238 154 397 Spaces Moved 952 | 78 346 226 302 Core 22 | 20 . . 2 Treads 6 | . . . 6 Legs 175 | 58 26 . 91 Wheels . | . . . . Hover . | . . . . Flight 749 | . 320 226 203 Fastest Speed 34 | 50 37 34 34 Average Speed 62 | 102 44 36 92 Slowest Speed 250 | 120 120 40 250 Overloaded Moves . | . . . . Propulsion Burnouts . | . . . . Robots Hopped 1 | . 1 . . Potential Cave-ins . | . . . . Cave-ins Triggered 1 | . . . 1 Exploration Rate (%) 35 | 4 51 35 53 Regions Visited 3 Branch Regions 1 Pre-discovered Areas . | . . . . Known Exits Taken . | . . . . Unknown Exits Taken 3 | 1 1 1 . Scrap Searched . | . . . . Spaces Dug . | . . . . Terrain Destroyed 150 | . 17 39 94 Melee . | . . . . Projectile . | . . . . AOE 150 | . 17 39 94 Terrain Rammed . | . . . . Walls Destroyed . | . . . . Machines Disabled . | . . . . Actions | -11 -10 -9 -9 --------- Run | Yrd Mat Mat Sto Total 1111 | 87 400 259 365 Wait 13 | . 13 . . Move 947 | 77 343 225 302 Hop 1 | . 1 . . Pick Up 17 | 2 3 5 7 Fast Attach 20 | 6 7 3 4 Attach 8 | . . . 8 Detach 2 | . 1 . 1 Swap 10 | . 2 2 6 Drop 12 | . 6 2 4 Fire 62 | 2 22 22 16 Melee 19 | . 2 . 17 Ram . | . . . . Kick . | . . . . Crush . | . . . . Escape Stasis . | . . . . Rewire . | . . . . Trap . | . . . . Miscellaneous . | . . . . Route ------- -11/Scrapyard -10/Materials -9/Materials (discovered 3 exits: [*Min x2] / *Sto) -9/Storage History --------- Turn | Location | Event 2 | -11/Scrapyard | Met Revision 17 72 | -11/Scrapyard | Discovered new exit (range 8) 96 | -11/Scrapyard | Entered Materials 211 | -10/Materials | Discovered new exit (range 16) 334 | -10/Materials | Entered another Materials area 334 | -9/Materials | Evolved 2 slots: Propulsion x1, Utility x1 384 | -9/Materials | Discovered new exit (range 8) 434 | -9/Materials | Discovered new exit (range 3) 460 | -9/Materials | Discovered new exit (range 14) 488 | -9/Materials | Entered Storage 512 | -9/Storage | Build established: Mutant 528 | -9/Storage | Repaired Imp. Flight Unit 537 | -9/Storage | Repaired Lgt. Ion Engine 588 | -9/Storage | Repaired Imp. Flight Unit? 837 | -9/Storage | System corruption reached 10% 862 | -9/Storage | Crushed by falling debris 862 | -9/Storage | Core integrity fell below 50% 869 | -9/Storage | Core integrity fell below 20% 885 | -9/Storage | Destroyed by Y-45 Defender with Beam Rifle Last Messages --------------- 00862_ System corrupted by crushing effect (+4). 00864_ Lgt. Treads destroyed. 00865_ System corrupted: Heat flow error (+161). 00867_ R-06 Scavenger collects Lgt. Treads. 00867_ Lgt. Treads destroyed. 00867_ Destroyed Lgt. Treads. 00867_ Visual Processing Unit destroyed. 00867_ Destroyed Visual Processing Unit. 00867_ Mni. Grenade Launcher destroyed. 00871_ R-06 Scavenger collects Aluminum Leg. 00872_ The unstable cave ceiling collapses. 00875_ R-06 Scavenger collects Lgt. Treads. 00875_ G-47 Trooper suffers critical hit (Smash). 00875_ G-47 Trooper destroyed. 00876_ The unstable cave ceiling collapses. 00878_ R-06 Scavenger collects Imp. Ion Engine. 00880_ System corrupted: Heat flow error (+179). 00881_ The unstable cave ceiling collapses. 00885_ Critical hit (Burn: +37). Map ----- +----------------------------------------------------+ | ???# #??????????????????????????????????? | | ???# #???????????????????? ???????????? | | ???# #???????????????????? ???????????? | | ???# #???????????????????? #??????????? | | #### ########+#??????????? #??????????? | | # # #??????????# #??????????? | | ?"%# # """"" #??????????# #??????????? | | ?" # # """"" #??????????# +??????????? | | ?"%# # """"" #?#+#??????# #??????????? | | "" " + #?# #?##???# #??????????? | | #% # """"" #?# ### #### #??????????? | | # # """"" ### # # #??????????? | | # # """"" + # "" # #??????????? | | # # ### # Y" # #??????????? | | #### ###" "####?# # "" # #??????????? | | ???#####?#"T"#????# # # #??????????? | | ?????????#"""#????# #?? # #??????????? | | ?????????########## #####+## #??????????? | | ??????+ r #??????????? | | ??????# ### #+#####???????? | | ??????# # #???????? | | ??????# # g #???????? | | ??????# ##############u# # #???????? | | ???????????????# * #???????? | | ???????????????# Y = #####???? | | #??????????????# @ # #???? | | #??????????????# # #???? | | ###????????????########### #???? | | #????????????????????# #???? | | ###### ###????????????# # #???? | | + ????????### # ###???? | | ######+####?????????????# ##???????? | | ] #?? #?????????????#########????????? | | # ## #??????????????????????????????? | | #??????????????????????????????? | | ## #??????????????????????????????? | | #?? ?? #??????????????????????????????? | | ###???###?????????????????????????????????? | | #?????????????????????????????????????????? | | #?????????????????????????????????????????? | | #?????????????????????????????????????????? | | #?????????????????????????????????????????? | | #?????????????????????????????????????????? | | #?????????????????????????????????????????? | | #?????????????????????????????????????????? | | #?????????????????????????????????????????? | | #?????????????????????????????????????????? | | #########?????????????????????????????????? | | ?????????????????????????? | | ?????????????????????????? | +----------------------------------------------------+ Best States ------------- Heat Dissipation 35 Energy Generation 12 Energy Capacity 265 Matter Stores 300 Matter Capacity 450 Sight Range 18 Terrain Scan Density 10 Additional Mass Support 6 Evasion (%) 63 Recoil Reduction 3 Item Schematics ----------------- None Robot Schematics ------------------ None Fabricated ------------ Nothing Repaired ---------- Imp. Flight Unit | 17% | -9/Storage Studied --------- None Alien Tech Used ----------------- None Achievements -------------- A Problem For Future Me DATA ERROR: Steam Global Achievement% Let's See Who's Tougher One Hack Too Far Overwhelming Part-time Mechanic Power Corrupts Resistances Are Futile Risk Taker Spot Them First Storm Trooper Challenges ------------ None Game ------ Seed StrikeHeavyPower Manual? 0 Play Time 00:45:09 Cumulative 2.1 hours Start 2026.08.27 @ 14:01:08 End 2026.08.27 @ 16:21:53 Sessions 3 Manual Loads 0 Difficulty Rogue Special Mode None Game No. 2 Rogue 2 Adventurer 0 Explorer 0 Win Type - Total 0 Types 0/0/0/0/0/0/0/0/0/0 Lore% 0 Gallery% 2 Achievement% 4 Wizard Run 0 Options --------- Layout 1 ASCII 0 Keyboard 0 Movement Mouse Keybinds 0 Fullscreen 1 Font 24/Smallcaps Map View 50x35 Zoom Use 0% Tactical HUD 1 Map Filters NONE Filters NONE Steam 1 RUN: 91152e3c-4658-4ab4-a90d-af206bceed69